fUST/lending_fUST_20251017
["ID","MTS","AMOUNT","RATE_DAILY","PERIOD"]
[391591477,1760682977507,-1453.28,0.00029906,2]
[391591478,1760682977527,-171.73,0.0003063,15]
[391591479,1760682977548,-153.62,0.0003063,15]
[391591480,1760682977568,-171.73,0.0003073,15]
[391591481,1760682977589,-171.73,0.0003083,15]
[391591482,1760682977610,-171.74711425,0.0003093,15]
[391591483,1760682977632,-1200.0,0.00031205,3]
[391591484,1760682977652,-255.0,0.00031205,2]
[391591485,1760682977674,-1797.88288575,0.00031206,2]
[391591487,1760683211431,-424.55,0.00027394,2]
[391591488,1760683211461,-849.1,0.00028698,2]
[391591489,1760683211484,-202.0,0.00029999,2]
[391591490,1760683211505,-300.0,0.00029999,2]
[391591491,1760683211527,-204.0,0.00029999,2]
[391591492,1760683211547,-320.31656126,0.0003,2]
[391591493,1760683211704,-1700.03343874,0.0003,2]
[391591495,1760683530125,-191.21772839,0.00029347,2]
[391591497,1760683626129,-405.91,0.00029297,2]
[391591498,1760683626149,-155.69523297,0.0002975,2]
[391591499,1760683626168,-453.78913429,0.0002985,24]
[391591500,1760683626188,-384.38846339,0.00029912,2]
[391591501,1760683626207,-3416.38337545,0.0003,2]
[391591502,1760683626227,-341.778581,0.00030173,120]
[391591503,1760683626250,-881.212824,0.00030443,2]
[391591504,1760683626270,-276.39625632,0.00030447,30]
[391591505,1760683626293,-811.81,0.00030693,2]
[391591506,1760683626313,-1000.0,0.00030828,30]
[391591507,1760683626333,-1037.0,0.0003136,2]
[391591508,1760683626355,-1217.72,0.00032088,2]
[391591509,1760683626374,-835.68,0.00032758,9]
[391591510,1760683626394,-155.69523296,0.00032948,2]
[391591511,1760683626414,-1478.59217804,0.00032968,2]
[391591512,1760683626438,-3672.54356843,0.00032968,2]
[391591513,1760683626458,-31520.56506739,0.0003299,2]
[391591514,1760683626479,-151.0,0.00033038,2]
[391591515,1760683626503,-151.0,0.00033038,2]
[391591516,1760683626524,-151.76994319,0.00033038,2]
[391591517,1760683626545,-192.32,0.00033038,3]
[391591518,1760683626572,-331.71155483,0.00033047,7]
[391591519,1760683626593,-500.0,0.00033047,7]
[391591520,1760683626614,-500.0,0.00033047,2]
[391591521,1760683626635,-500.0,0.00033047,7]
[391591522,1760683626655,-500.0,0.00033047,7]
[391591523,1760683626674,-171.58969793,0.00033047,7]
[391591524,1760683626694,-500.0,0.00033047,7]
[391591525,1760683626716,-500.0,0.00033047,7]
[391591526,1760683626736,-500.0,0.00033047,7]
[391591527,1760683626758,-500.0,0.00033047,7]
[391591528,1760683626778,-500.0,0.00033047,2]
[391591529,1760683626799,-500.0,0.00033047,7]
[391591530,1760683626821,-500.0,0.00033047,7]
[391591531,1760683626840,-500.0,0.00033047,2]
[391591532,1760683626861,-500.0,0.00033047,7]
[391591533,1760683626881,-500.0,0.00033047,7]
[391591534,1760683626900,-500.0,0.00033047,7]
[391591535,1760683626923,-500.0,0.00033047,7]
[391591536,1760683626943,-208.29210995,0.00033047,7]
[391591537,1760683626965,-500.0,0.00033047,2]
[391591538,1760683626988,-500.0,0.00033047,7]
[391591539,1760683627014,-500.0,0.00033047,7]
[391591540,1760683627036,-323.75709733,0.00033047,2]
[391591541,1760683627057,-250.0,0.00033047,7]
[391591542,1760683627080,-500.0,0.00033047,7]
[391591543,1760683627102,-200.0,0.00033047,7]
[391591544,1760683627123,-500.0,0.00033047,7]
[391591545,1760683627144,-430.0,0.00033047,7]
[391591546,1760683627166,-241863.050976,0.00033048,2]
[391591547,1760683627188,-17502.8649079,0.00033048,2]
[391591548,1760683627208,-200.0,0.00033048,10]
[391591549,1760683627228,-191.91582,0.00033048,10]
[391591550,1760683627251,-325.23,0.00033057,7]
[391591551,1760683627272,-350348.13622129,0.00033058,2]
[391591552,1760683653098,-877.24,0.00033,2]
[391591553,1760683653121,-705.17,0.00033038,3]
[391591554,1760683653144,-17.1531839,0.00033058,2]
[391591555,1760683654125,-332.36346371,0.00033058,2]
[391591563,1760683755094,-374.91,0.00029266,2]
[391591564,1760683755119,-749.82,0.0003066,2]
[391591565,1760683755141,-1124.73,0.00032054,2]
[391591566,1760683755161,-500.0,0.00033047,2]
[391591567,1760683755181,-5907.87462314,0.00033058,2]
[391591568,1760683760101,-4980.63181518,0.00033058,2]
[391591569,1760683805203,292.7,0.00029041,120]
[391591570,1760683815771,346.28,0.00029265,2]
[391591604,1760683832125,-460.49673598,0.00030658,2]
[391591609,1760683832173,-232.06326402,0.00030658,2]
[391591611,1760683832183,-669.2435928,0.00032052,2]
[391591615,1760683832224,-369.5964072,0.00032052,2]
[391591616,1760683832236,-248.46580774,0.00032921,2]
[391591617,1760683832250,-1.53419226,0.00032921,2]
[391591618,1760683832265,-3812.46580774,0.00033058,2]
[391591619,1760683832283,-1732.19,0.00033058,2]
[391591668,1760683838179,-1182.44956677,0.00033058,2]
[391591670,1760683838192,-1686.73531827,0.00033058,2]
[391591672,1760683838203,-895.35,0.0003307,9]
[391591674,1760683838215,-156.0598852,0.00033086,2]
[391591676,1760683838226,-856.4020644,0.00033101,2]
[391591678,1760683838237,-151.0,0.00033147,7]
[391591680,1760683838248,-151.0,0.00033147,7]
[391591682,1760683838272,-500.0,0.00033147,7]
[391591685,1760683838287,-500.0,0.00033147,7]
[391591687,1760683838301,-151.0,0.00033147,7]
[391591689,1760683838314,-201.49201726,0.00033147,7]
[391591691,1760683838328,-250.054382,0.00033165,2]
[391591693,1760683838341,-437.64,0.000332,2]
[391591695,1760683838354,-151.0,0.000332,20]
[391591697,1760683838367,-151.0,0.000332,15]
[391591699,1760683838381,-15190.37921149,0.000332,7]
[391591702,1760683838397,-11087.92406855,0.000332,7]
[391591703,1760683838410,-990.0,0.000332,2]
[391591705,1760683838429,-990.0,0.000332,3]
[391591707,1760683838443,-204.95378496,0.00033202,7]
[391591710,1760683838456,-151.0,0.00033202,7]
[391591711,1760683838468,-527.59772341,0.00033202,7]
[391591713,1760683838480,-500.0,0.00033202,7]
[391591715,1760683838492,-152.88885831,0.00033202,7]
[391591717,1760683838506,-154.84377212,0.00033257,7]
[391591719,1760683838518,-500.0,0.00033257,7]
[391591721,1760683838531,-151.0,0.00033257,7]
[391591723,1760683838541,-151.0,0.00033257,7]
[391591725,1760683838554,-151.0,0.00033257,2]
[391591727,1760683838565,-151.77989384,0.00033257,7]
[391591729,1760683838577,-151.24075468,0.00033257,2]
[391591731,1760683838588,-500.0,0.00033257,7]
[391591734,1760683838600,-500.0,0.00033257,7]
[391591736,1760683838612,-500.0,0.00033257,7]
[391591738,1760683838624,-500.0,0.00033257,7]
[391591751,1760683838749,-151.0,0.00033257,7]
[391591754,1760683838811,-500.0,0.00033257,7]
[391591756,1760683838822,-177.64477798,0.00033267,2]
[391591758,1760683838833,-2767.43036216,0.00033267,2]
[391591760,1760683838844,-1182.87374244,0.0003327,2]
[391591761,1760683838854,-191.25,0.000333,14]
[391591763,1760683838864,-2502.19,0.000333,14]
[391591765,1760683838875,-151.0,0.000333,15]
[391591767,1760683838886,-25.88437414,0.000333,18]
[391591769,1760683838899,-125.11562586,0.000333,18]
[391591771,1760683838912,-151.0,0.000333,19]
[391591773,1760683838926,-151.0,0.000333,13]
[391591775,1760683838937,-151.0,0.000333,19]
[391591777,1760683838947,-262.16741655,0.00033311,7]
[391591779,1760683838957,-151.0,0.00033312,7]
[391591781,1760683838968,-151.0,0.00033312,7]
[391591783,1760683838980,-500.0,0.00033312,7]
[391591784,1760683838990,-500.0,0.00033312,7]
[391591786,1760683839000,-500.0,0.00033312,7]
[391591788,1760683839010,-500.0,0.00033312,7]
[391591790,1760683839020,-151.0,0.00033312,7]
[391591792,1760683839030,-500.0,0.00033312,7]
[391591794,1760683839040,-151.0,0.00033328,5]
[391591795,1760683839050,-151.0,0.00033328,5]
[391591797,1760683839060,-500.0,0.00033328,5]
[391591799,1760683839070,-151.0,0.00033328,5]
[391591801,1760683839080,-151.0,0.00033328,5]
[391591803,1760683839090,-500.0,0.00033328,5]
[391591805,1760683839100,-207.31095096,0.00033328,5]
[391591807,1760683839111,-2000.0,0.00033346,2]
[391591808,1760683839121,-352.59,0.00033357,3]
[391591810,1760683839130,-176.29,0.00033357,3]
[391591812,1760683839140,-528.91,0.00033357,3]
[391591814,1760683839150,-220.15,0.0003336,10]
[391591816,1760683839160,-183.46,0.0003336,10]
[391591818,1760683839176,-152.88,0.0003336,10]
[391591820,1760683839185,-3609.64,0.00033362,10]
[391591822,1760683839195,-210.37207137,0.00033367,7]
[391591823,1760683839205,-151.0,0.00033367,7]
[391591825,1760683839216,-268.45146432,0.00033367,7]
[391591827,1760683839226,-154.80971872,0.00033367,7]
[391591829,1760683839237,-500.0,0.00033367,7]
[391591831,1760683839247,-500.0,0.00033367,7]
[391591833,1760683839257,-67.13539866,0.00033367,7]
[391591881,1760683839764,-83.86460134,0.00033367,7]
[391591883,1760683839773,-500.0,0.00033367,7]
[391591885,1760683839784,-151.0,0.00033367,2]
[391591886,1760683839794,-186.510713,0.00033367,30]
[391591888,1760683839804,-359.897633,0.00033367,30]
[391591891,1760683839813,-359.897633,0.00033367,30]
[391591894,1760683839823,-359.897633,0.00033367,30]
[391591896,1760683839833,-359.897633,0.00033367,30]
[391591898,1760683839843,-220.554941,0.00033367,30]
[391591899,1760683839852,-635.498903,0.00033367,30]
[391591901,1760683839861,-635.498903,0.00033367,30]
[391591903,1760683839870,-635.498903,0.00033367,30]
[391591905,1760683839880,-635.498903,0.00033367,30]
[391591907,1760683839890,-151.0,0.00033367,30]
[391591909,1760683839900,-151.0,0.00033367,30]
[391591911,1760683839910,-151.0,0.00033367,30]
[391591912,1760683839926,-151.0,0.00033367,30]
[391591914,1760683839936,-209.994761,0.00033367,30]
[391591916,1760683839946,-151.0,0.00033368,30]
[391591918,1760683839957,-151.0,0.00033368,30]
[391591920,1760683839966,-204.491708,0.00033368,30]
[391591922,1760683839976,-204.491708,0.00033368,30]
[391591923,1760683839986,-204.491708,0.00033368,30]
[391591925,1760683839995,-204.491708,0.00033368,30]
[391591927,1760683840005,-189.81023444,0.00033368,7]
[391591929,1760683840015,-270.0,0.00033368,7]
[391591931,1760683840026,-258.19523304,0.00033368,2]
[391591933,1760683840037,-250.0,0.00033368,7]
[391591935,1760683840047,-300.0,0.00033368,7]
[391591937,1760683840056,-1000.0,0.00033369,2]
[391591938,1760683840065,-1000.0,0.00033369,2]
[391591940,1760683840075,-1000.0,0.00033369,2]
[391591942,1760683840085,-1000.0,0.00033369,2]
[391591944,1760683840094,-1000.0,0.00033369,2]
[391591946,1760683840104,-1000.0,0.00033369,2]
[391591948,1760683840113,-1000.0,0.00033369,2]
[391591950,1760683840123,-1000.0,0.00033369,2]
[391591951,1760683840133,-977.95360887,0.00033369,2]
[391591953,1760683840144,-201.16558939,0.00033369,10]
[391591955,1760683840153,-232.19808839,0.00033369,7]
[391591957,1760683840168,-214.212617,0.0003337,10]
[391591959,1760683840178,-5000.0,0.0003337,30]
[391591961,1760683840188,-5000.0,0.0003337,50]
[391591963,1760683840198,-15000.0,0.0003337,50]
[391591965,1760683840208,-10000.0,0.0003337,15]
[391591966,1760683840218,-10000.0,0.0003337,10]
[391591968,1760683840230,-291.0,0.0003337,120]
[391591970,1760683840239,-121669.93668976,0.0003337,20]
[391591971,1760683840252,-1071.1,0.0003337,20]
[391591972,1760683840264,-4359.00647253,0.0003337,20]
[391591973,1760683840362,-1359.08242873,0.0003337,20]
[391592081,1760683842227,-119.17477302,0.0003337,20]
[391592208,1760683843210,-764.45,0.0003336,10]
[391592210,1760683843220,-20635.55,0.0003337,20]
[391592222,1760683843308,-224246.05327295,0.0003337,20]
[391592609,1760683846978,-388053.96274381,0.0003337,20]
[391592611,1760683846987,-7020.43313887,0.0003337,30]
[391592613,1760683846996,-252.65,0.0003337,30]
[391592615,1760683847006,-201.4637601,0.00033372,10]
[391592617,1760683847016,-200.0,0.00033372,10]
[391592619,1760683847025,-151.0,0.00033383,5]
[391592621,1760683847034,-151.0,0.00033383,5]
[391592623,1760683847043,-500.0,0.00033383,5]
[391592625,1760683847052,-151.0,0.00033383,5]
[391592627,1760683847061,-158.7602902,0.00033383,5]
[391592629,1760683847071,-500.0,0.00033383,5]
[391592631,1760683847081,-151.0,0.000334,10]
[391592633,1760683847090,-308.35688632,0.00033421,7]
[391592635,1760683847102,-500.0,0.00033421,7]
[391592637,1760683847119,-151.0,0.00033421,7]
[391592639,1760683847128,-500.0,0.00033421,7]
[391592641,1760683847137,-4136.87444359,0.00033427,2]
[391592643,1760683847146,-18139.7288232,0.00033437,2]
[391592645,1760683847155,-151.0,0.00033438,5]
[391592647,1760683847164,-152.41538853,0.00033438,5]
[391592649,1760683847179,-500.0,0.00033438,5]
[391592651,1760683847187,-295.37969836,0.00033438,5]
[391592653,1760683847196,-500.0,0.00033438,5]
[391592655,1760683847205,-1385.13,0.00033445,2]
[391592657,1760683847214,-502.57658769,0.00033473,5]
[391592659,1760683847223,-502.5569066,0.00033473,5]
[391592661,1760683847232,-500.0,0.00033476,7]
[391592663,1760683847241,-253.76748316,0.00033476,7]
[391592665,1760683847250,-500.0,0.00033476,7]
[391592667,1760683847259,-202.72168321,0.00033492,5]
[391592669,1760683847268,-570.42955924,0.00033492,5]
[391592671,1760683847278,-500.0,0.00033492,5]
[391592673,1760683847288,-500.0,0.00033531,7]
[391592675,1760683847297,-500.0,0.00033531,7]
[391592677,1760683847306,-500.0,0.00033547,5]
[391592679,1760683847315,-500.0,0.00033586,7]
[391592681,1760683847325,-500.0,0.00033586,7]
[391592683,1760683847335,-500.0,0.00033602,5]
[391592684,1760683847344,-500.0,0.00033641,7]
[391592687,1760683847354,-500.0,0.00033641,7]
[391592688,1760683847363,-500.0,0.00033657,5]
[391592690,1760683847373,-500.0,0.00033695,7]
[391592693,1760683847383,-500.0,0.00033695,7]
[391592694,1760683847393,-500.0,0.00033712,5]
[391592696,1760683847402,-500.0,0.0003375,7]
[391592698,1760683847412,-500.0,0.00033766,5]
[391592700,1760683847425,-298.25238297,0.000338,2]
[391592702,1760683847435,-162.73455485,0.000338,2]
[391592704,1760683847444,-187.50543271,0.000338,2]
[391592706,1760683847454,-264.10454563,0.000338,2]
[391592708,1760683847464,-500.0,0.00033805,7]
[391592710,1760683847473,-500.0,0.00033821,5]
[391592712,1760683847482,-401.91132231,0.00033858,2]
[391592714,1760683847492,-500.0,0.0003386,7]
[391592716,1760683847501,-588.0,0.00033915,7]
[391592718,1760683847510,-300.0,0.00033932,30]
[391592720,1760683847519,-506.60645978,0.00033938,5]
[391592722,1760683847529,-505.7437,0.00033938,5]
[391592724,1760683847539,-229.80515195,0.00033938,5]
[391592726,1760683847548,-500.0,0.00033938,5]
[391592728,1760683847557,-481.13614356,0.00033938,5]
[391592730,1760683847567,-500.53075342,0.00033938,5]
[391592732,1760683847576,-278.218947,0.0003399,30]
[391592734,1760683847585,-151.0,0.0003399,30]
[391592736,1760683847595,-204.491708,0.0003399,30]
[391592738,1760683847605,-204.491708,0.0003399,30]
[391592739,1760683847615,-204.491708,0.0003399,30]
[391592740,1760683847625,-204.491708,0.0003399,30]
[391592741,1760683847634,-206.817843,0.0003399,2]
[391592742,1760683847645,-152.535861,0.00034,2]
[391592743,1760683847655,-298.25238297,0.000341,2]
[391592744,1760683847665,-162.73455485,0.000341,2]
[391592745,1760683847676,-187.50543271,0.000341,2]
[391592746,1760683847687,-264.10454563,0.000341,2]
[391592747,1760683847696,-501.09043019,0.0003416,5]
[391592748,1760683847706,-501.75064816,0.0003416,5]
[391592749,1760683847716,-502.55504406,0.0003416,2]
[391592750,1760683847726,-500.0,0.0003416,5]
[391592751,1760683847735,-500.0,0.0003416,5]
[391592752,1760683847745,-500.0,0.0003416,5]
[391592753,1760683847754,-384.64,0.00034408,3]
[391592754,1760683847763,-2115.52,0.00034408,3]
[391592755,1760683847773,-1410.34,0.00034408,3]
[391592756,1760683847782,-576.29357266,0.00034485,5]
[391592757,1760683847791,-4136.87444359,0.0003449,2]
[391592759,1760683847801,-298.25238297,0.000345,2]
[391592760,1760683847811,-162.73455485,0.000345,2]
[391592762,1760683847820,-187.50543271,0.000345,2]
[391592764,1760683847829,-264.10454563,0.000345,2]
[391592766,1760683847839,-436.24886388,0.00034708,5]
[391592768,1760683847848,-705.18,0.00034727,3]
[391592770,1760683847858,-352.58,0.00034727,3]
[391592772,1760683847867,-298.25238297,0.000348,2]
[391592774,1760683847876,-162.73455485,0.000348,2]
[391592776,1760683847887,-187.50543271,0.000348,2]
[391592778,1760683847898,-264.10454563,0.000348,2]
[391592780,1760683847908,-1731.41,0.00034839,2]
[391592782,1760683847924,-1182.87374242,0.00034928,2]
[391592785,1760683847934,-152.535861,0.00035112,2]
[391592786,1760683847943,-298.25238297,0.000352,2]
[391592788,1760683847952,-264.10454563,0.000352,2]
[391592790,1760683847962,-437.64,0.000352,2]
[391592792,1760683847972,-341.778581,0.00035201,120]
[391592794,1760683847981,-18139.7288232,0.00035757,3]
[391592796,1760683847991,-1000.0,0.00035767,2]
[391592798,1760683848000,-1000.0,0.00035767,2]
[391592800,1760683848009,-1000.0,0.00035767,2]
[391592801,1760683848019,-1000.0,0.00035767,2]
[391592803,1760683848028,-2404.79858206,0.00035767,2]
[391592805,1760683848038,-1000.0,0.00035767,2]
[391592807,1760683848047,-1000.0,0.00035767,2]
[391592809,1760683848056,-1000.0,0.00035767,2]
[391592811,1760683848066,-1000.0,0.00035767,2]
[391592813,1760683848075,-1000.0,0.00035767,2]
[391592815,1760683848084,-1000.0,0.00035767,2]
[391592816,1760683848093,-1000.0,0.00035767,2]
[391592818,1760683848103,-1000.0,0.00035767,2]
[391592820,1760683848111,-1000.0,0.00035767,2]
[391592822,1760683848121,-1000.0,0.00035767,2]
[391592824,1760683848131,-1000.0,0.00035767,2]
[391592826,1760683848140,-1000.0,0.00035767,2]
[391592828,1760683848150,-1000.0,0.00035767,2]
[391592830,1760683848159,-1000.0,0.00035767,2]
[391592832,1760683848169,-1000.0,0.00035767,2]
[391592834,1760683848183,-1000.0,0.00035767,2]
[391592836,1760683848192,-359.897633,0.00035767,120]
[391592838,1760683848202,-359.897633,0.00035767,120]
[391592840,1760683848211,-359.897633,0.00035767,120]
[391592842,1760683848222,-359.897633,0.00035767,120]
[391592844,1760683848231,-558.11154868,0.0003599,2]
[391592845,1760683848241,-9181.78625968,0.00036124,2]
[391592847,1760683848251,-151.0,0.00036124,120]
[391592849,1760683848260,-151.0,0.00036124,120]
[391592851,1760683848269,-151.0,0.00036124,120]
[391592853,1760683848279,-156.524901,0.00036224,2]
[391592855,1760683848288,-152.535861,0.00036224,2]
[391592857,1760683848298,-2077.69,0.00036232,2]
[391592859,1760683848308,-4136.87444359,0.00036424,3]
[391592861,1760683848317,-2767.43036216,0.00036584,2]
[391592863,1760683848327,-1182.87374242,0.00036585,2]
[391592865,1760683848336,-151.0,0.000366,12]
[391592867,1760683848346,-168.0,0.0003662,2]
[391592869,1760683848356,-635.498903,0.00036667,120]
[391592871,1760683848365,-635.498903,0.00036667,120]
[391592872,1760683848375,-635.498903,0.00036667,120]
[391592874,1760683848384,-635.498903,0.00036667,120]
[391592876,1760683848394,-151.0,0.00036667,120]
[391592878,1760683848403,-357.3393086,0.00036667,2]
[391592880,1760683848413,-408.38778126,0.00036667,2]
[391592881,1760683848423,-558.11154868,0.00037,120]
[391592883,1760683848432,-168.0,0.0003724,7]
[391592885,1760683848442,-151.0,0.000373,11]
[391592887,1760683848451,-160.0,0.000373,120]
[391592889,1760683848461,-156.524901,0.00037335,2]
[391592891,1760683848470,-152.535861,0.00037335,2]
[391592892,1760683848479,-152.535861,0.00037362,10]
[391592894,1760683848488,-18139.7288232,0.0003738,3]
[391592896,1760683848498,-298.45,0.000374,18]
[391592898,1760683848508,-1109.0,0.00037438,2]
[391592900,1760683848517,-5081.685,0.000375,60]
[391592902,1760683848527,-603.0,0.00037541,7]
[391592904,1760683848536,-2423.97,0.00037626,2]
[391592906,1760683848546,-789.0,0.00037711,2]
[391592908,1760683848558,-168.0,0.0003786,2]
[391592910,1760683848568,-151.0,0.00038,16]
[391592912,1760683848577,-437.64,0.00038,2]
[391592914,1760683848586,-152.535861,0.00038025,10]
[391592915,1760683848596,-1182.87374242,0.00038243,2]
[391592917,1760683848605,-603.0,0.00038288,2]
[391592919,1760683848615,-603.0,0.00038375,120]
[391592921,1760683848624,-156.524901,0.00038447,2]
[391592923,1760683848634,-152.535861,0.00038447,2]
[391592925,1760683848645,-5000.00090623,0.000385,90]
[391592927,1760683848656,-151.0,0.000386,17]
[391592928,1760683848665,-156.524901,0.00038687,10]
[391592930,1760683848679,-152.535861,0.00038687,10]
[391592932,1760683848689,-160.0,0.00038728,3]
[391592934,1760683848699,-500.0,0.00038943,5]
[391592936,1760683848708,-500.01486159,0.00038943,2]
[391592947,1760683848820,-605.0,0.00038958,7]
[391592949,1760683848831,-299.99999901,0.00039,2]
[391592951,1760683848840,-500.0,0.00039004,30]
[391592953,1760683848849,-2770.25,0.00039019,2]
[391592955,1760683848858,-603.0,0.00039104,7]
[391592957,1760683848868,-4136.87444359,0.00039144,3]
[391592958,1760683848877,-605.0,0.00039154,2]
[391592960,1760683848887,-309.9195607,0.00039178,30]
[391592962,1760683848896,-193.5605094,0.00039178,30]
[391592964,1760683848905,-166.3238228,0.00039178,30]
[391592966,1760683848914,-153.0,0.00039178,30]
[391592967,1760683848938,-601.7645603,0.00039178,30]
[391592968,1760683848948,-298.3166109,0.00039178,30]
[391592969,1760683848957,-163.1090927,0.00039178,30]
[391592970,1760683848969,-589.2525938,0.00039178,30]
[391592971,1760683848978,-298.3166109,0.00039178,30]
[391592972,1760683848987,-163.1090927,0.00039178,30]
[391592973,1760683848997,-189.9852637,0.00039178,30]
[391592974,1760683849006,-589.2525938,0.00039178,30]
[391592975,1760683849015,-153.0,0.00039178,30]
[391592976,1760683849025,-298.3166109,0.00039178,30]
[391592977,1760683849035,-189.9852637,0.00039178,30]
[391592978,1760683849044,-153.0,0.00039178,30]
[391592979,1760683849053,-189.9852637,0.00039178,30]
[391592980,1760683849063,-153.0,0.00039178,30]
[391592981,1760683849072,-189.9852637,0.00039178,30]
[391592982,1760683849081,-153.0,0.00039178,30]
[391592983,1760683849091,-155.3018682,0.00039178,30]
[391592984,1760683849100,-176.52882263,0.00039294,4]
[391592985,1760683849110,-151.0,0.000393,14]
[391592986,1760683849119,-156.524901,0.0003935,10]
[391592987,1760683849128,-152.535861,0.0003935,10]
[391592989,1760683849138,-982.0,0.0003937,2]
[391592991,1760683849147,-631.0,0.0003937,2]
[391592993,1760683849155,-2162.0,0.0003937,2]
[391592995,1760683849165,-150.0,0.0003937,2]
[391592997,1760683849177,-549.835,0.0003937,2]
[391592998,1760683849186,-605.0,0.0003959,120]
[391593000,1760683849195,-250.054382,0.00039654,2]
[391593002,1760683849204,-895.35,0.000397,24]
[391593004,1760683849213,-800.0,0.00039752,7]
[391593006,1760683849222,-800.0,0.00039885,7]
[391593008,1760683849231,-1165.74538321,0.000399,30]
[391593010,1760683849240,-2767.43036216,0.000399,2]
[391593011,1760683849251,-1182.87374242,0.000399,2]
[391593013,1760683849260,-18139.7288232,0.0003997,3]
[391593015,1760683849269,-150.0,0.00039973,5]
[391593017,1760683849278,-500.0,0.00039973,4]
[391593019,1760683849287,-332.24711868,0.00039973,5]
[391593021,1760683849297,-500.0,0.00039973,5]
[391593022,1760683849306,-500.0,0.00039973,2]
[391593024,1760683849315,-204.491708,0.0003998,120]
[391593026,1760683849324,-204.491708,0.0003998,120]
[391593028,1760683849333,-204.491708,0.0003998,120]
[391593030,1760683849342,-204.491708,0.0003998,120]
[391593032,1760683849351,-18139.7288232,0.0003998,3]
[391593033,1760683849360,-4136.87444359,0.0003998,3]
[391593035,1760683849370,-38689.53486784,0.0003999,30]
[391593037,1760683849379,-151.0,0.0003999,120]
[391593039,1760683849387,-359.897633,0.0003999,120]
[391593041,1760683849397,-359.897633,0.0003999,120]
[391593043,1760683849406,-359.897633,0.0003999,120]
[391593045,1760683849415,-359.897633,0.0003999,120]
[391593047,1760683849427,-635.498903,0.0003999,120]
[391593048,1760683849435,-635.498903,0.0003999,120]
[391593050,1760683849446,-635.498903,0.0003999,120]
[391593052,1760683849455,-635.498903,0.0003999,120]
[391593054,1760683849465,-151.0,0.0003999,120]
[391593056,1760683849475,-151.0,0.0003999,120]
[391593058,1760683849484,-151.0,0.0003999,120]
[391593060,1760683849493,-151.0,0.0003999,120]
[391593061,1760683849502,-145117.830585,0.0003999,3]
[391593063,1760683849511,-62053.1166539,0.0003999,3]
[391593065,1760683849520,-1416.023304,0.0003999,120]
[391593067,1760683849529,-1416.023304,0.0003999,120]
[391593069,1760683849538,-1416.023304,0.0003999,120]
[391593071,1760683849548,-1416.023304,0.0003999,120]
[391593073,1760683849557,-256.646383,0.0003999,120]
[391593074,1760683849566,-256.646383,0.0003999,120]
[391593076,1760683849576,-256.646383,0.0003999,120]
[391593078,1760683849585,-256.646383,0.0003999,120]
[391593080,1760683849595,-151.0,0.0003999,120]
[391593082,1760683849604,-151.0,0.0003999,120]
[391593084,1760683849614,-151.0,0.0003999,120]
[391593086,1760683849622,-151.0,0.0003999,120]
[391593088,1760683849635,-293.613637,0.0003999,120]
[391593090,1760683849647,-119787.16868742,0.0004,7]
[391593091,1760683849656,-1163614.85,0.0004,120]
[391593093,1760683849665,-2502.19,0.0004,14]
[391593095,1760683849676,-472.93,0.0004,2]
[391593097,1760683849687,-1000.0,0.0004,120]
[391593099,1760683849696,-1000.0,0.0004,120]
[391593101,1760683849705,-1000.0,0.0004,120]
[391593103,1760683849715,-1000.0,0.0004,120]
[391593105,1760683849726,-1000.0,0.0004,120]